Cogmind - Beta 15 @@@ ROGUE MODE // 2025.06.05 @ 00:06:10 // Winter2019/RPGLIKE Player: Jack Result: Defending 0bPrime! Performance ------------- Evolutions (8) 4000 Regions Visited (21) 4200 Robots Destroyed (435) 2175 Value Destroyed (24091) 24091 Prototype IDs (20) 400 Alien Tech Used (1) 200 Bonus (25723) 25723 TOTAL SCORE: 60789 Bonus ------- High Alert Combat Kills 12337 Follower Combat Kills 33 Registered with UFD 300 Met Optimus in HQ 500 Hacked Protovariant 500 Met Optimus at Protoforge 1000 Completed Drillbomb Mission10000 Win 3000 Friendly Fire -1947 Cogmind --------- Core Integrity 808/1600 Matter 284/300 Energy 370/370 System Corruption 21% Temperature Cool (0) Movement Flying (37) Location 0bPrime Parts ------- > --- POWER (1) -------- Light Antimatter Reactor > --- PROPULSION (3) --- Xenon Bombardment Thruster Field Propulsion Array > --- UTILITY (7) ------ Advanced Weight Redist. System Core Analyzer Core Analyzer Makeshift Medium Armor Plating Graphene Brace (fused) > --- WEAPON (2) ------- (None) > --- INVENTORY (10) --- (None) Peak State ------------ > --- POWER ------------ Nuclear Core > --- PROPULSION ------- Field Propulsion Array > --- UTILITY ---------- Structural Scanner Core Analyzer Core Analyzer Nanoactuators Nanoactuators Graphene Brace Improved Force Field > --- WEAPON ----------- Sigix Broadsword > --- INVENTORY -------- Protomatter Protomatter Protomatter Protomatter Force Field AEGIS Remote Shield Terrabomb Rocket Array Rocket Array Z-bomb Delivery System [Rating: 87] Favorites ----------- Power Nuclear Core Engine Backup Power I Power Core Nuclear Core Reactor Light Antimatter Reactor Propulsion VTOL Module Hover Unit Backup Propulsion III Flight Unit VTOL Module Utility Core Analyzer Device Nanoactuators Processor Core Analyzer Hackware Improved Hacking Suite Protection Powered Armor Weapon Power Sword Ballistic Gun Assault Rifle Launcher Rocket Array Impact Weapon Maul Slashing Weapon Power Sword Build | -11 -10 -10 -9 -8 -8 -8 -8 -6 -6 -6 -6 -5 -5 -4 -4 -4 -3 -3 -2 -2 -2 ------- Run | Yrd Mat Min Mat Mat Sto Rec Scr Fac Low Low Zio Pro Fac Fac Was Fac Res Tes Res Qua Frg Slots Evolved 9 | 1 1 . . . . . 2 1 . . . . 2 . . 1 . . . . 1 Power . | . . . . . . . . . . . . . . . . . . . . . . Propulsion 2 | 1 . . . . . . . . . . . . . . . . . . . . 1 Utility 6 | . . . . . . . 2 1 . . . . 2 . . 1 . . . . . Weapon 1 | . 1 . . . . . . . . . . . . . . . . . . . . Parts Attached 67 | 1 4 2 9 4 1 . 1 6 . 2 1 1 4 4 . 6 . 5 1 2 13 Power 9 | . . 1 3 1 . . . . . . . 1 . . . 1 . . . . 2 Engine 4 | . . 1 3 . . . . . . . . . . . . . . . . . . Core 2 | . . . . 1 . . . . . . . 1 . . . . . . . . . Reactor 3 | . . . . . . . . . . . . . . . . 1 . . . . 2 Propulsion 13 | . 2 1 2 . 1 . . 1 . 1 . . 2 . . 1 . . . . 2 Treads . | . . . . . . . . . . . . . . . . . . . . . . Leg . | . . . . . . . . . . . . . . . . . . . . . . Wheel . | . . . . . . . . . . . . . . . . . . . . . . Hover . | . . . . . . . . . . . . . . . . . . . . . . Flight 13 | . 2 1 2 . 1 . . 1 . 1 . . 2 . . 1 . . . . 2 Utility 28 | . . . 2 1 . . 1 3 . 1 1 . 2 1 . 4 . 3 1 1 7 Device 13 | . . . . 1 . . . 1 . 1 1 . . . . 3 . 2 1 1 2 Storage . | . . . . . . . . . . . . . . . . . . . . . . Processor 2 | . . . . . . . . . . . . . 2 . . . . . . . . Hackware 5 | . . . . . . . 1 1 . . . . . 1 . 1 . . . . 1 Protection 8 | . . . 2 . . . . 1 . . . . . . . . . 1 . . 4 Artifact . | . . . . . . . . . . . . . . . . . . . . . . Weapon 17 | 1 2 . 2 2 . . . 2 . . . . . 3 . . . 2 . 1 2 Energy Gun . | . . . . . . . . . . . . . . . . . . . . . . Energy Cannon . | . . . . . . . . . . . . . . . . . . . . . . Ballistic Gun 1 | 1 . . . . . . . . . . . . . . . . . . . . . Ballistic Cannon . | . . . . . . . . . . . . . . . . . . . . . . Launcher 4 | . . . . . . . . . . . . . . 1 . . . 1 . . 2 Special Weapon . | . . . . . . . . . . . . . . . . . . . . . . Impact Weapon 2 | . 2 . . . . . . . . . . . . . . . . . . . . Slashing Weapon 10 | . . . 2 2 . . . 2 . . . . . 2 . . . 1 . 1 . Piercing Weapon . | . . . . . . . . . . . . . . . . . . . . . . Special Melee Weapon . | . . . . . . . . . . . . . . . . . . . . . . Unidentified Prototypes 6 | . . . . . . . . . . . . . . . . . . 4 . 1 1 Corrupted Parts 2 | . . 1 . . . . . . . . . . . . . . . . . . 1 System Corruption 4 | . . 1 . . . . . . . . . . . . . . . . . . 3 Parts Lost 8 | . . . . . . . . . 2 1 . . . 1 . . . . . . 4 Power . | . . . . . . . . . . . . . . . . . . . . . . Propulsion 3 | . . . . . . . . . 1 1 . . . . . . . . . . 1 Utility 5 | . . . . . . . . . 1 . . . . 1 . . . . . . 3 Weapon . | . . . . . . . . . . . . . . . . . . . . . . Highest Loss Streak 2 | . . . . . . . . . 2 1 . . . 1 . . . . . . 1 To Critical Strikes . | . . . . . . . . . . . . . . . . . . . . . . Average Backups 1 | . . . . . . . . 1 2 2 3 2 2 2 2 2 2 3 4 5 2 Power . | . . . . . . . . . . . 1 1 . . . . . . . . . Propulsion . | . . . . . . . . . . . . . . . . . . . . . . Utility . | . . . . . . . . . 1 1 . . . . . . . . 1 1 . Weapon 1 | . . . . . . . . . 1 1 1 1 1 1 2 2 2 2 3 3 1 Tool/Special . | . . . . . . . . . . . . . . . . . . . . . . Unused Backups 2 | . . . . . . . . . . . . . . . . . . 1 . . 1 Power . | . . . . . . . . . . . . . . . . . . . . . . Propulsion . | . . . . . . . . . . . . . . . . . . . . . . Utility 1 | . . . . . . . . . . . . . . . . . . 1 . . . Weapon . | . . . . . . . . . . . . . . . . . . . . . . Tool/Special 1 | . . . . . . . . . . . . . . . . . . . . . 1 Average Slot Usage (%) 89 | . 38 66 94 97 100 100 90 95 95 87 82 98 96 93 90 96 91 89 91 88 80 Core 8 | . . . . 13 16 16 13 11 10 11 2 9 9 9 9 8 8 8 8 8 3 Flight 17 | . 17 33 33 33 33 33 27 22 20 13 11 11 17 18 18 13 8 8 8 8 11 Device 23 | . . . . 15 16 16 13 17 19 19 22 22 18 18 18 37 41 39 41 40 27 Processor 9 | . . . . . . . . . . . . . 13 18 18 16 16 16 16 16 15 Hackware 7 | . . . . . . . 8 20 22 22 22 22 18 15 9 1 . . . . . Protection 1 | . . . 14 . . . . 2 . . . . . . . . . . . . 5 Launcher 2 | . . . . . . . . . . . . . . . . . 5 . . . 11 Slashing Weapon 15 | . . . 27 30 33 33 27 20 22 22 22 22 18 14 18 16 10 15 16 13 . Peak Build Rating 87 | 1 6 7 7 15 17 17 22 29 29 32 30 32 40 44 41 67 67 74 75 87 87 Average Rating 44 | . 2 6 6 11 15 17 20 26 28 28 28 31 37 40 41 58 65 68 74 75 68 On Entrance 32 | . 1 6 6 6 15 17 17 22 29 25 29 30 32 40 41 41 67 65 69 75 87 Naked Turns . | . . . . . . . . . . . . . . . . . . . . . . Heaviest Build 50 | 2 6 6 10 15 15 15 15 22 16 18 18 19 21 23 23 39 35 44 32 33 50 Greatest Support 55 | 3 8 8 13 18 19 19 19 24 24 24 23 19 23 23 23 40 40 40 40 40 55 Greatest Overweight (x) 1 | . . . . 1 . . . . . . . . . . . 1 . 1 . 1 1 Average Overweight (x) . | . . . . . . . . . . . . . . . . . . . . . . Largest Inventory Capacity 10 | . . . . 1 2 2 3 3 3 3 3 3 5 5 5 6 6 8 10 10 10 Average Capacity 5 | . . . . . 1 2 2 3 3 3 3 3 3 5 5 5 6 7 9 10 10 Most Carried 10 | . . . . 1 2 2 2 3 3 3 3 3 5 5 5 6 5 8 9 10 10 Average Carried 4 | . . . . . 1 1 1 1 2 2 3 2 3 4 2 5 5 6 8 9 7 Final Capacity 10 | . . . . 1 2 2 3 3 3 3 3 3 5 5 5 6 6 8 10 10 10 Final Carried 9 | . . . . 1 2 2 1 2 2 3 3 2 5 2 5 5 5 7 9 9 . Class Distribution -------------------- 47% | Hacker-Gladiator 27% | Hacker-Mutant 22% | Hacker-Sprinter Dominant Class ---------------- Mutant | -10/Materials Gladiator | -10/Mines Hacker-Gladiator | -9/Materials Hacker-Gladiator | -8/Materials Hacker-Gladiator | -8/Storage Hacker-Gladiator | -8/Recycling Hacker-Gladiator | -8/Scraptown Hacker-Gladiator | -6/Factory Hacker-Sprinter | -6/Lower Caves Hacker-Gladiator | -6/Lower Caves Hacker-Gladiator | -6/Zion Hacker-Gladiator | -5/Proximity Caves Hacker-Sprinter | -5/Factory Hacker-Sprinter | -4/Factory Hacker-Sprinter | -4/Waste Hacker-Sprinter | -4/Factory Hacker-Mutant | -3/Research Hacker-Gladiator | -3/Testing Hacker-Gladiator | -2/Research Hacker-Gladiator | -2/Quarantine Hacker-Mutant | -2/Protoforge Resources | -11 -10 -10 -9 -8 -8 -8 -8 -6 -6 -6 -6 -5 -5 -4 -4 -4 -3 -3 -2 -2 -2 ----------- Run | Yrd Mat Min Mat Mat Sto Rec Scr Fac Low Low Zio Pro Fac Fac Was Fac Res Tes Res Qua Frg Matter Collected 7921 | 169 136 71 90 50 10 5 20 77 59 41 17 20 55 170 . 167 . 330 10 59 6365 Remotely . | . . . . . . . . . . . . . . . . . . . . . . Salvage Created 15926 | . 136 100 334 411 394 149 . 2308 308 332 96 258 1624 601 194 2407 49 1063 555 1111 3496 Parts 814 | . 7 6 16 33 32 16 . 118 12 8 . 14 71 55 9 128 4 54 29 79 123 Haulers Intercepted . | . . . . . . . . . . . . . . . . . . . . . . Recyclers Shooed 6 | . 3 . . . . . . 1 . . . . 1 . . 1 . . . . . Parts Field Recycled . | . . . . . . . . . . . . . . . . . . . . . . Retrieved Matter . | . . . . . . . . . . . . . . . . . . . . . . Parts Self-Destructed 36 | . . . . . . . . . 15 7 . 14 . . . . . . . . . Prevented . | . . . . . . . . . . . . . . . . . . . . . . Kills | -11 -10 -10 -9 -8 -8 -8 -8 -6 -6 -6 -6 -5 -5 -4 -4 -4 -3 -3 -2 -2 -2 ------- Run | Yrd Mat Min Mat Mat Sto Rec Scr Fac Low Low Zio Pro Fac Fac Was Fac Res Tes Res Qua Frg Combat Hostiles Destroyed 378 | . 5 6 8 11 14 3 . 37 5 5 . 5 34 23 3 38 3 15 12 12 139 Melee 216 | . . 2 8 10 14 3 . 37 5 5 . 5 34 9 3 35 . 15 12 12 7 Guns 5 | . 5 . . . . . . . . . . . . . . . . . . . . AOE 153 | . . . . 1 . . . . . . . . . 14 . 3 3 . . . 132 Classes Destroyed 27 | . 2 2 3 1 . . . 4 2 . . 1 1 . . 1 . . . 1 9 Worker 10 | . . 3 1 . . . . 1 . . . . . 2 . 2 . . . 1 . Builder 3 | . . . . . . . . 1 . . . . . . . 1 . 1 . . . Tunneler 3 | . . 1 . . . . . 2 . . . . . . . . . . . . . Recycler 8 | . . . . . . . . 4 . . . . . . . 3 . . . 1 . Carrier 1 | . . . . . . . . . . . . . . . . . . . . . 1 Mechanic 9 | . . . 1 . . . . . . . . . . . . . . . . . 8 Operator 8 | . . . . . . . . 2 . . . . 1 1 . 1 . . . 2 1 Drone 5 | . . . . . . . . . . . . 1 . . . . . . . . 4 Watcher 5 | . . . 1 . . . . 2 . . . . . . . 1 . . . . 1 Swarmer 99 | . 3 6 3 . 7 . . 12 . 4 . . 7 14 2 9 3 . 5 . 24 Cutter 4 | . . . . . . . . . . . . . . . . 4 . . . . . Saboteur 2 | . . . . . . . . . . . . . 1 . . . . . . . 1 Grunt 110 | . 2 . 4 7 2 . . 16 1 1 . 3 22 2 1 13 . 7 5 4 20 Brawler 7 | . . . . . . . . . . . . . . . . . . . . . 7 Duelist 7 | . . . . . . . . . 2 . . . . . . . . . . . 5 Protector 5 | . . . . . . . . . . . . . . . . . . . . . 5 Researcher 3 | . . . . . . . . . . . . . . . . . . . . 3 . Sentry 29 | . . . 1 2 5 3 . 4 1 . . . 3 1 . 5 . . 2 . 2 Specialist 1 | . . . . . . . . . . . . . . . . . . . . . 1 Hunter 37 | . . . . 2 . . . 4 . . . 1 1 2 . 4 . 4 . 4 15 Programmer 29 | . . . . . . . . 1 1 . . . . 4 . 3 . 4 . 4 12 Behemoth 1 | . . . . . . . . . . . . . . . . . . . . . 1 Hotshot 16 | . . . . . . . . . . . . . . . . . . . . . 16 Decapitator 2 | . . . . . . . . . . . . . . . . . . . . . 2 Overlord 1 | . . . . . . . . . . . . . . . . . . . . . 1 Striker 5 | . . . . . . . . . . . . . . . . . . . . . 5 Executioner 17 | . . . . . . . . . . . . . . . . . . . . . 17 Scrapoid 5 | . . . . . . . . . . . . . . . . . . . . . 5 Butcher 1 | . . . . . . . . . . 1 . . . . . . . . . . . Mutant 2 | . . . . . . . . . 1 1 . . . . . . . . . . . Best Kill Streak 17 | . 3 4 6 4 6 3 . 6 1 2 . 3 8 12 5 13 3 3 8 5 17 Combat Bots Only 15 | . 3 3 6 4 6 3 . 4 1 2 . 3 8 10 5 11 3 3 8 3 15 Max Kills in Single Turn 8 | . 1 1 1 1 1 1 . 1 1 1 . 1 1 8 1 3 3 1 1 1 8 Gunslinging . | . . . . . . . . . . . . . . . . . . . . . . Exploded 7 | . . . . 1 . . . . . . . . . 7 . 3 3 . . . 7 Melee 1 | . . 1 1 1 1 1 . 1 1 1 . 1 1 1 1 1 . 1 1 1 1 Uniques/NPCs Destroyed . | . . . . . . . . . . . . . . . . . . . . . . Combat | -11 -10 -10 -9 -8 -8 -8 -8 -6 -6 -6 -6 -5 -5 -4 -4 -4 -3 -3 -2 -2 -2 -------- Run | Yrd Mat Min Mat Mat Sto Rec Scr Fac Low Low Zio Pro Fac Fac Was Fac Res Tes Res Qua Frg Hostile Shots Fired 2427 | . 38 20 48 39 65 . . 372 71 39 . 19 186 140 . 191 20 92 89 90 908 Missed 1073 | . 10 8 16 16 29 . . 161 35 18 . 4 74 59 . 92 10 41 39 37 424 Hits 1354 | . 28 12 32 23 36 . . 211 36 21 . 15 112 81 . 99 10 51 50 53 484 Melee 35 | . . . . . . . . . 10 . . . . 3 . 3 . . . . 19 Projectile 1319 | . 28 12 32 23 36 . . 211 26 21 . 15 112 78 . 96 10 51 50 53 465 AOE 3 | . . . . . . . . 1 . . . . 1 . . . . . . . 1 Critical Strikes 68 | . . . 1 1 . . . 7 2 . . . 6 6 . 6 . 1 3 5 30 Actively Blocked 33 | . . . . . . . . . . . . . . . . . . . 3 . 30 Part Disruptions 3 | . . . . . . . . 1 . . . . . . . . . . . 1 1 Damage Taken 18166 | . 272 83 350 151 218 . . 1895 648 184 . 132 901 716 . 966 96 444 518 606 9986 Core 13887 | . 234 73 246 124 186 . . 1428 576 154 . 108 752 583 . 788 79 356 425 495 7280 Absorbed by Shields 7487 | . . . . 58 93 . . 712 129 64 . 95 855 756 . 914 101 449 382 382 2497 Redirected to Core 9440 | . 121 26 132 95 95 . . 951 255 95 . 72 447 429 . 539 52 257 304 372 5198 Ignored by Resistances 5196 | . . . . 46 81 . . 621 108 57 . 56 414 215 . 410 34 154 246 184 2570 Regen/Repaired (Parts) 194 | . . . . . . . . 15 . . 2 . . . . . . 21 . 28 128 Core Remaining (%) 84 | 100 . 82 70 . . . 100 . . . . 91 95 . . 82 . 86 . . 50 Volleys Fired 130 | . 32 . . . . . . . . . . . . 4 . . 1 1 . . 92 Largest 2 | . 1 . . . . . . . . . . . . 1 . . 1 1 . . 2 Hottest 90 | . 20 . . . . . . . . . . . . 45 . . 45 30 . . 90 Shots Fired 196 | . 32 . . . . . . . . . . . . 4 . . 1 1 . . 158 Gun 32 | . 32 . . . . . . . . . . . . . . . . . . . . Cannon . | . . . . . . . . . . . . . . . . . . . . . . Launcher 164 | . . . . . . . . . . . . . . 4 . . 1 1 . . 158 Special . | . . . . . . . . . . . . . . . . . . . . . . Kinetic 32 | . 32 . . . . . . . . . . . . . . . . . . . . Thermal . | . . . . . . . . . . . . . . . . . . . . . . Explosive 164 | . . . . . . . . . . . . . . 4 . . 1 1 . . 158 Electromagnetic . | . . . . . . . . . . . . . . . . . . . . . . Robot Hit Streak 10 | . 10 . . . . . . . . . . . . 2 . . 3 . . . 8 Robot Miss Streak 7 | . 4 . . . . . . . . . . . . 2 . . 3 . . . 7 Penetration Max . | . . . . . . . . . . . . . . . . . . . . . . Secondary Targets . | . . . . . . . . . . . . . . . . . . . . . . Shots Hit Robots 840 | . 22 11 27 22 28 3 . 143 30 18 3 10 98 32 5 115 3 59 39 54 118 Core Hits 1381 | . 10 1 11 11 12 3 . 65 8 8 2 7 51 49 3 66 9 26 19 25 995 Critical Kills . | . . . . . . . . . . . . . . . . . . . . . . Critical Parts Destroyed 4 | . 1 3 . . . . . . . . . . . . . . . . . . . Critical Strikes 103 | . 1 3 . 1 2 . . 19 2 3 . . 24 3 . 19 1 14 8 3 . Destroy 1 | . 1 . . . . . . . . . . . . . . . . . . . . Smash 3 | . . 3 . . . . . . . . . . . . . . . . . . . Sever 99 | . . . . 1 2 . . 19 2 3 . . 24 3 . 19 1 14 8 3 . Melee Attacks 975 | . . 16 34 23 39 6 . 176 39 23 13 17 130 48 6 170 9 92 50 64 20 Impact 17 | . . 16 1 . . . . . . . . . . . . . . . . . . Slashing 958 | . . . 33 23 39 6 . 176 39 23 13 17 130 48 6 170 9 92 50 64 20 Piercing . | . . . . . . . . . . . . . . . . . . . . . . Sneak Attacks 58 | . . 4 4 . 1 3 . 14 2 4 . 1 2 3 3 10 . 1 . 6 . Combat Hostiles 12 | . . . . . 1 3 . 3 . . . 1 1 1 . 2 . . . . . Follow-up Attacks 99 | . . 2 4 1 . . . 15 2 2 . 1 9 2 . 27 . 11 6 17 . Damage Inflicted 75720 | . 259 600 715 803 1090 237 . 6280 1136 969 297 481 4142 2628 450 6409 322 2936 1793 3169 41004 Guns 259 | . 259 . . . . . . . . . . . . . . . . . . . . Cannons . | . . . . . . . . . . . . . . . . . . . . . . Explosions 41712 | . . . . . . . . . . . . . . 1120 . 506 224 . . . 39862 Melee 33749 | . . 600 715 803 1090 237 . 6280 1136 969 297 481 4142 1508 450 5903 98 2936 1793 3169 1142 Ramming . | . . . . . . . . . . . . . . . . . . . . . . Kinetic 259 | . 259 . . . . . . . . . . . . . . . . . . . . Thermal 369 | . . . . . . . . . . . . . . . . 369 . . . . . Explosive 41206 | . . . . . . . . . . . . . . 1120 . . 224 . . . 39862 Electromagnetic 137 | . . . . . . . . . . . . . . . . 137 . . . . . Impact 652 | . . 600 52 . . . . . . . . . . . . . . . . . . Slashing 33097 | . . . 663 803 1090 237 . 6280 1136 969 297 481 4142 1508 450 5903 98 2936 1793 3169 1142 Piercing . | . . . . . . . . . . . . . . . . . . . . . . Highest Corruption 21 | . . 1 . . 1 1 1 3 4 4 4 . 1 7 7 9 . 3 . 3 21 Average Corruption 6 | . . 1 . . 1 1 1 2 3 4 4 . 1 5 7 7 . 1 . 2 12 Corruption Purged . | . . . . . . . . . . . . . . . . . . . . . . Corruption Blocked . | . . . . . . . . . . . . . . . . . . . . . . Effects 211 | . . 1 . . 1 3 . 8 7 8 . . 1 4 . 34 . 2 . 4 138 Message Errors 46 | . . . . . . . . 3 2 . . . . 3 . 8 . . . 2 28 Matter Fused 59 | . . 1 . . 1 2 . 1 3 4 . . 1 1 . 9 . 2 . 1 33 Heat Flow Errors 20 | . . . . . . 1 . 1 . 1 . . . . . 5 . . . . 12 Energy Discharges 25 | . . . . . . . . 3 1 1 . . . . . 2 . . . . 18 Parts Rejected 5 | . . . . . . . . . 1 . . . . . . 1 . . . . 3 Parts Fused 4 | . . . . . . . . . . . . . . . . . . . . . 4 Data Loss (minor) 23 | . . . . . . . . . . 1 . . . . . 5 . . . 1 16 Data Loss (major) 13 | . . . . . . . . . . 1 . . . . . 4 . . . . 8 Alerts 4 | . . . . . . . . . . . . . . . . . . . . . 4 Misdirections 10 | . . . . . . . . . . . . . . . . . . . . . 10 Weapon Failures 2 | . . . . . . . . . . . . . . . . . . . . . 2 Overload Shots . | . . . . . . . . . . . . . . . . . . . . . . Overflow Damage 3098 | . . 367 14 38 87 . . 459 19 238 25 . 214 . 77 254 3 48 68 355 832 Projectiles . | . . . . . . . . . . . . . . . . . . . . . . Explosions 748 | . . . . . . . . . . . . . . . . . . . . . 748 Melee 2350 | . . 367 14 38 87 . . 459 19 238 25 . 214 . 77 254 3 48 68 355 84 Knockbacks 3 | . . 3 . . . . . . . . . . . . . . . . . . . Impact 3 | . . 3 . . . . . . . . . . . . . . . . . . . Kinetic . | . . . . . . . . . . . . . . . . . . . . . . Secondary . | . . . . . . . . . . . . . . . . . . . . . . Self-Inflicted Damage 903 | . . . . . . . . . . . . . . . . 133 . . . . 770 Shots 40 | . . . . . . . . . . . . . . . . 2 . . . . 38 Rammed 1 | . . . . . . . . . . . . . . . . . 1 . . . . Targets Rammed 1 | . . . . . . . . . . . . . . . . . 1 . . . . Kicked . | . . . . . . . . . . . . . . . . . . . . . . Crushed . | . . . . . . . . . . . . . . . . . . . . . . Highest Temperature 472 | . . . . 5 . 208 . 254 1 255 . . 3 . . 249 . 472 8 . 225 Average Temperature 108 | . . . . 5 . 112 . 64 1 131 . . 2 . . 96 . 226 6 . 77 Received Heat Transfer 2346 | . 81 . 108 79 60 . . 577 159 18 . 30 319 39 . 91 4 34 120 12 615 Effects 4 | . . . . . . . . . . . . . . . . . . 4 . . . Shutdowns 1 | . . . . . . . . . . . . . . . . . . 1 . . . Matter Decay 1 | . . . . . . . . . . . . . . . . . . 1 . . . Short Circuit 1 | . . . . . . . . . . . . . . . . . . 1 . . . Damage (minor) 1 | . . . . . . . . . . . . . . . . . . 1 . . . Siege Activations . | . . . . . . . . . . . . . . . . . . . . . . Martial Activations . | . . . . . . . . . . . . . . . . . . . . . . Shielding Activations . | . . . . . . . . . . . . . . . . . . . . . . Robots Disrupted . | . . . . . . . . . . . . . . . . . . . . . . Combat Hostiles . | . . . . . . . . . . . . . . . . . . . . . . Robots Corrupted 6 | . . 6 . . . . . . . . . . . . . . . . . . . Combat Hostiles 4 | . . 4 . . . . . . . . . . . . . . . . . . . Parts Fried 8 | . . 4 2 . . . . . . . . . . . . 1 . . . . 1 Impact Corruptions 17 | . . 16 1 . . . . . . . . . . . . . . . . . . Robots Melted . | . . . . . . . . . . . . . . . . . . . . . . Combat Hostiles . | . . . . . . . . . . . . . . . . . . . . . . Parts Melted 5 | . . . . . . . . . . . . . . . . . . . . . 5 Heat Transferred 200 | . . . . . . . . . . . . . . . . 200 . . . . . Parts Sabotaged 11 | . . . . . . . . . . . . . . . . . . . . . 11 Parts Stolen . | . . . . . . . . . . . . . . . . . . . . . . Parts Stripped . | . . . . . . . . . . . . . . . . . . . . . . Power Chain Reactions . | . . . . . . . . . . . . . . . . . . . . . . Alert | -11 -10 -10 -9 -8 -8 -8 -8 -6 -6 -6 -6 -5 -5 -4 -4 -4 -3 -3 -2 -2 -2 ------- Run | Yrd Mat Min Mat Mat Sto Rec Scr Fac Low Low Zio Pro Fac Fac Was Fac Res Tes Res Qua Frg Maximum Alert Level 5 | . . . . 1 2 1 . 4 . . . . 4 4 2 4 3 2 2 2 5 Low Security (%) 18 | 100 100 100 100 78 41 65 . 35 . . . . 4 . . . . . . . . Level 1 12 | . . . . 21 45 34 . 14 . . . . 21 . . 9 . . 24 25 4 Level 2 25 | . . . . . 13 . . 27 . . . . 31 37 100 46 . 100 75 74 3 Level 3 12 | . . . . . . . . 21 . . . . 22 43 . 30 100 . . . 6 Level 4 6 | . . . . . . . . . . . . . 18 18 . 14 . . . . 6 Level 5 23 | . . . . . . . . . . . . . . . . . . . . . 78 High Security . | . . . . . . . . . . . . . . . . . . . . . . Max Security . | . . . . . . . . . . . . . . . . . . . . . . Peak Influence 5176 | . 140 127 183 261 440 323 . 1109 . . . . 1171 1376 539 1376 866 610 658 551 5176 Initial 719 | . . 42 49 70 109 167 . . . . . . 150 565 479 363 719 481 342 364 296 Average 1241 | . 72 65 90 112 251 149 . 428 . . . . 683 866 524 687 796 531 519 460 3024 Influence Increases 15047 | . 180 175 229 291 471 216 . 1560 350 235 10 105 1607 1053 60 1453 187 431 416 385 5633 Destroy 0b10 Robot/C 7440 | . 100 120 160 220 300 60 . 740 100 100 . 80 680 460 60 760 60 280 240 300 2620 Destroy 0b10 Robot/NC 290 | . . 20 15 . . . . 60 . . 10 5 5 15 . 40 . 5 . 20 95 Destroy Leader 1210 | . 20 20 32 70 80 . . 154 10 . . 20 120 70 . 142 10 40 40 20 362 Allied During Kill 10 | . . . . . 10 . . . . . . . . . . . . . . . . Successful Hack 138 | . . . 6 . 5 4 . 20 . . . . 31 1 . 22 15 . 16 . 18 Select Force Hacks 150 | . . . . . . 150 . . . . . . . . . . . . . . . Disable Machine 435 | . . . . . 30 . . . . . . . 30 15 . 30 . 45 . 30 255 Destroy Structure 1564 | . . . 1 1 1 2 . 16 . . . . 36 102 . 84 42 46 15 15 1203 Advance Influence 150 | . . . . . . . . . . . . . 150 . . . . . . . . Partial Spotted 180 | . 15 . . . 45 . . 45 . . . . 30 . . 45 . . . . . Lose Combat Pursuer 3480 | . 45 15 15 . . . . 525 240 135 . . 525 390 . 330 60 15 105 . 1080 Influence Decreases 9872 | . 70 158 188 198 302 646 . 454 644 315 742 105 452 838 911 602 701 677 378 506 985 Entered New Map 5402 | . . 68 78 98 152 263 . . 410 155 732 . . 590 891 156 651 375 268 284 231 Time Decay 4390 | . 70 90 110 100 150 383 . 454 214 150 10 105 452 238 20 446 50 302 110 222 714 Lost Part 80 | . . . . . . . . . 20 10 . . . 10 . . . . . . 40 Squads Dispatched 98 | . . . . 3 2 . . 18 . . . . 18 9 . 17 5 12 . 4 10 Investigation 48 | . . . . 1 . . . 14 . . . . 10 4 . 10 3 . . . 6 Extermination 15 | . . . . . . . . 2 . . . . 3 2 . 3 . 2 . 3 . Reinforcement 25 | . . . . 2 . . . 2 . . . . 2 1 . 3 2 8 . 1 4 Assault 10 | . . . . . 2 . . . . . . . 3 2 . 1 . 2 . . . Garrison . | . . . . . . . . . . . . . . . . . . . . . . Intercept . | . . . . . . . . . . . . . . . . . . . . . . Searches Triggered . | . . . . . . . . . . . . . . . . . . . . . . Construction Impeded . | . . . . . . . . . . . . . . . . . . . . . . Haulers Reinforced . | . . . . . . . . . . . . . . . . . . . . . . Active Scanning Responses . | . . . . . . . . . . . . . . . . . . . . . . Cargo Convoy Interrupts . | . . . . . . . . . . . . . . . . . . . . . . Stealth | -11 -10 -10 -9 -8 -8 -8 -8 -6 -6 -6 -6 -5 -5 -4 -4 -4 -3 -3 -2 -2 -2 --------- Run | Yrd Mat Min Mat Mat Sto Rec Scr Fac Low Low Zio Pro Fac Fac Was Fac Res Tes Res Qua Frg Distress Signals 23 | . . . 1 1 1 . . 4 . . . . 2 2 . 1 1 . 1 1 8 Communications Jammed . | . . . . . . . . . . . . . . . . . . . . . . Distress Signals . | . . . . . . . . . . . . . . . . . . . . . . Times Spotted 789 | . 9 7 13 18 17 . . 73 22 17 . 5 78 51 . 68 14 17 23 25 332 Peak Tracking Total 22 | . 6 3 7 8 7 . . 12 6 8 . 2 11 16 . 12 8 4 6 4 22 Tactical Retreats 95 | . 1 1 1 . . . . 14 6 4 . . 16 10 . 9 2 1 2 . 28 Traps | -11 -10 -10 -9 -8 -8 -8 -8 -6 -6 -6 -6 -5 -5 -4 -4 -4 -3 -3 -2 -2 -2 ------- Run | Yrd Mat Min Mat Mat Sto Rec Scr Fac Low Low Zio Pro Fac Fac Was Fac Res Tes Res Qua Frg Traps Triggered 8 | . . . . . 2 . . . . . . . . 1 . 1 . . 1 . 3 Indirectly . | . . . . . . . . . . . . . . . . . . . . . . Trap Hack Attempts . | . . . . . . . . . . . . . . . . . . . . . . Triggered . | . . . . . . . . . . . . . . . . . . . . . . Disarmed . | . . . . . . . . . . . . . . . . . . . . . . Reprogrammed . | . . . . . . . . . . . . . . . . . . . . . . Reused . | . . . . . . . . . . . . . . . . . . . . . . Traps Extracted . | . . . . . . . . . . . . . . . . . . . . . . Installed . | . . . . . . . . . . . . . . . . . . . . . . Triggered . | . . . . . . . . . . . . . . . . . . . . . . Machines | -11 -10 -10 -9 -8 -8 -8 -8 -6 -6 -6 -6 -5 -5 -4 -4 -4 -3 -3 -2 -2 -2 ---------- Run | Yrd Mat Min Mat Mat Sto Rec Scr Fac Low Low Zio Pro Fac Fac Was Fac Res Tes Res Qua Frg Machines Disabled 30 | . . . . . 2 . . . . . . . 2 1 . 2 . 4 . 2 17 Max in Single Turn 4 | . . . . . 1 . . . . . . . 1 1 . 2 . 1 . 1 4 Garrison Access 1 | . . . . . . . . . . . . . 1 . . . . . . . . Machines Repaired . | . . . . . . . . . . . . . . . . . . . . . . Machines Dismantled . | . . . . . . . . . . . . . . . . . . . . . . Machines Sabotaged . | . . . . . . . . . . . . . . . . . . . . . . Overloaded Fab Kills . | . . . . . . . . . . . . . . . . . . . . . . Hacking | -11 -10 -10 -9 -8 -8 -8 -8 -6 -6 -6 -6 -5 -5 -4 -4 -4 -3 -3 -2 -2 -2 --------- Run | Yrd Mat Min Mat Mat Sto Rec Scr Fac Low Low Zio Pro Fac Fac Was Fac Res Tes Res Qua Frg Machines Accessed 79 | . . . 2 2 3 10 2 14 . . . . 12 5 . 12 4 3 2 . 8 Terminals 27 | . . . 1 2 3 5 . 3 . . . . 2 2 . 3 1 2 2 . 1 Fabricators 12 | . . . . . . . . 1 . . . . 3 3 . 1 . . . . 4 Repair Stations 4 | . . . 1 . . . . 2 . . . . . . . . . 1 . . . Recycling Units 33 | . . . . . . 5 . 8 . . . . 6 . . 8 3 . . . 3 Scanalyzers . | . . . . . . . . . . . . . . . . . . . . . . Garrison Access 1 | . . . . . . . . . . . . . 1 . . . . . . . . Total Hacks 139 | . . . 7 5 3 13 3 22 . . . . 19 16 . 21 5 5 3 . 17 Successful 101 | . . . 2 1 3 12 3 17 . . . . 16 12 . 13 4 5 2 . 11 Failed 37 | . . . 5 4 . 1 . 4 . . . . 3 4 . 8 1 . 1 . 6 Catastrophic 4 | . . . . . . . . . . . . . 1 1 . 2 . . . . . Database Lockouts 1 | . . . . . . . . 1 . . . . . . . . . . . . . Manual 96 | . . . 5 5 2 13 . 20 . . . . 12 5 . 19 4 2 2 . 7 Terminals 59 | . . . 5 5 3 8 . 10 . . . . 6 6 . 8 1 3 3 . 1 Fabricators 33 | . . . . . . . . 2 . . . . 6 10 . 3 . . . . 12 Repair Stations 6 | . . . 2 . . . . 2 . . . . . . . . . 2 . . . Recycling Units 37 | . . . . . . 5 . 8 . . . . 6 . . 10 4 . . . 4 Scanalyzers . | . . . . . . . . . . . . . . . . . . . . . . Garrison Access 1 | . . . . . . . . . . . . . 1 . . . . . . . . Terminal Hacks 31 | . . . 1 1 3 2 3 5 . . . . 3 4 . 2 1 3 2 . 1 Record 5 | . . . . . . . 3 1 . . . . . . . . . 1 . . . Part Schematic 5 | . . . . . . . . 1 . . . . 2 1 . 1 . . . . . Open Door 3 | . . . . . 2 . . . . . . . . . . . . . 1 . . Level Access Points 1 | . . . . . . . . 1 . . . . . . . . . . . . . Branch Access Points 7 | . . . 1 1 1 . . 1 . . . . . . . 1 1 . 1 . . Terminal Index 1 | . . . . . . 1 . . . . . . . . . . . . . . . Fabricator Index 1 | . . . . . . . . . . . . . 1 . . . . . . . . Recycling Unit Index 2 | . . . . . . 1 . 1 . . . . . . . . . . . . . Reinforcement Status 1 | . . . . . . . . . . . . . . 1 . . . . . . . Recall Investigation 2 | . . . . . . . . . . . . . . 2 . . . . . . . Recall Assault 1 | . . . . . . . . . . . . . . . . . . 1 . . . Zone Layout 1 | . . . . . . . . . . . . . . . . . . . . . 1 Protovariant Controls 1 | . . . . . . . . . . . . . . . . . . 1 . . . Fabricator Hacks 22 | . . . . . . . . 2 . . . . 6 6 . 2 . . . . 6 Network Status 1 | . . . . . . . . . . . . . . 1 . . . . . . . Load Schematic 12 | . . . . . . . . 1 . . . . 3 3 . 1 . . . . 4 Build 9 | . . . . . . . . 1 . . . . 3 2 . 1 . . . . 2 Repair Station Hacks 3 | . . . 1 . . . . . . . . . . . . . . 2 . . . Scan Component 1 | . . . . . . . . . . . . . . . . . . 1 . . . Repair 1 | . . . . . . . . . . . . . . . . . . 1 . . . Refit 1 | . . . 1 . . . . . . . . . . . . . . . . . . Recycling Unit Hacks . | . . . . . . . . . . . . . . . . . . . . . . Scanalyzer . | . . . . . . . . . . . . . . . . . . . . . . Garrison Access Hacks 1 | . . . . . . . . . . . . . 1 . . . . . . . . Seal Access 1 | . . . . . . . . . . . . . 1 . . . . . . . . Unauthorized Hacks 44 | . . . . . . 10 . 10 . . . . 6 2 . 9 3 . . . 4 Terminals 5 | . . . . . . 5 . . . . . . . . . . . . . . . Skim 5 | . . . . . . 5 . . . . . . . . . . . . . . . Fabricators 4 | . . . . . . . . . . . . . . 2 . 1 . . . . 1 Prioritize 3 | . . . . . . . . . . . . . . 2 . 1 . . . . . Recompile 1 | . . . . . . . . . . . . . . . . . . . . . 1 Repair Stations 2 | . . . . . . . . 2 . . . . . . . . . . . . . Patch 2 | . . . . . . . . 2 . . . . . . . . . . . . . Recycling Units 33 | . . . . . . 5 . 8 . . . . 6 . . 8 3 . . . 3 Tunnel 5 | . . . . . . 5 . . . . . . . . . . . . . . . Fedlink 28 | . . . . . . . . 8 . . . . 6 . . 8 3 . . . 3 Scanalyzers . | . . . . . . . . . . . . . . . . . . . . . . Garrison Access . | . . . . . . . . . . . . . . . . . . . . . . Data Cores Recovered 6 | . . . . . . . . 1 . . . . 1 1 . 1 . . . 2 . Used 1 | . . . . . . . . . . . . . . . . 1 . . . . . Hacking Detections 35 | . . . 2 2 2 2 . 4 . . . . 4 5 . 6 1 1 1 . 5 Full Trace Events 17 | . . . . 1 . . . 4 . . . . 4 4 . 2 . . . . 2 Feedback Events 1 | . . . . . . . . 1 . . . . . . . . . . . . . Corruption 1 | . . . . . . . . 1 . . . . . . . . . . . . . Feedback Blocked . | . . . . . . . . . . . . . . . . . . . . . . Robot Schematics Acquired 6 | . . . . . . . . . . . 4 . . . . . . 1 . 1 . Robots Built . | . . . . . . . . . . . . . . . . . . . . . . Authchips . | . . . . . . . . . . . . . . . . . . . . . . Time . | . . . . . . . . . . . . . . . . . . . . . . Total Robot Build Rating . | . . . . . . . . . . . . . . . . . . . . . . Part Schematics Acquired 26 | . . . . . . . . 1 . . 14 . 2 1 . 1 . 1 . 6 . Parts Built 13 | . . . . . . . . 2 . . . . 4 2 . 2 . . . . 3 Authchips 1 | . . . . . . . . . . . . . . . . . . . . . 1 Time 450 | . . . . . . . . 42 . . . . 139 168 . 29 . . . . 72 Total Part Build Rating 62 | . . . . . . . . 8 . . . . 16 12 . 14 . . . . 12 Parts Repaired 1 | . . . . . . . . . . . . . . . . . . 1 . . . Time 86 | . . . . . . . . . . . . . . . . . . 86 . . . Parts Recycled . | . . . . . . . . . . . . . . . . . . . . . . Recycled Matter . | . . . . . . . . . . . . . . . . . . . . . . Retrieved Matter . | . . . . . . . . . . . . . . . . . . . . . . Retrieved Components . | . . . . . . . . . . . . . . . . . . . . . . Parts Scanalyzed . | . . . . . . . . . . . . . . . . . . . . . . Part Schematics Acquired . | . . . . . . . . . . . . . . . . . . . . . . Parts Damaged . | . . . . . . . . . . . . . . . . . . . . . . Bothacking | -11 -10 -10 -9 -8 -8 -8 -8 -6 -6 -6 -6 -5 -5 -4 -4 -4 -3 -3 -2 -2 -2 ------------ Run | Yrd Mat Min Mat Mat Sto Rec Scr Fac Low Low Zio Pro Fac Fac Was Fac Res Tes Res Qua Frg Used RIF Installer . | . . . . . . . . . . . . . . . . . . . . . . Robots Hacked . | . . . . . . . . . . . . . . . . . . . . . . Non-combat . | . . . . . . . . . . . . . . . . . . . . . . Combat . | . . . . . . . . . . . . . . . . . . . . . . Robot Hacks Applied . | . . . . . . . . . . . . . . . . . . . . . . Relay Couplers Released . | . . . . . . . . . . . . . . . . . . . . . . Fabnet Peak Effective % . | . . . . . . . . . . . . . . . . . . . . . . Robots Rewired . | . . . . . . . . . . . . . . . . . . . . . . Allies Hacked . | . . . . . . . . . . . . . . . . . . . . . . Hacks Repelled . | . . . . . . . . . . . . . . . . . . . . . . Allies | -11 -10 -10 -9 -8 -8 -8 -8 -6 -6 -6 -6 -5 -5 -4 -4 -4 -3 -3 -2 -2 -2 -------- Run | Yrd Mat Min Mat Mat Sto Rec Scr Fac Low Low Zio Pro Fac Fac Was Fac Res Tes Res Qua Frg Total Allies 2 | . . . . . 2 . . . . . . . . . . . . . . . . Largest Group 2 | . . . . . 2 2 2 . . . . . . . . . . . . . . Highest-Rated Group 62 | . . . . . 62 62 62 . . . . . . . . . . . . . . Highest-Rated Ally 31 | . . . . . 31 31 31 . . . . . . . . . . . . . . Total Orders . | . . . . . . . . . . . . . . . . . . . . . . Ally Attacks 2 | . . . . . 2 . . . . . . . . . . . . . . . . Total Damage 42 | . . . . . 42 . . . . . . . . . . . . . . . . Kills 1 | . . . . . 1 . . . . . . . . . . . . . . . . Allies Corrupted . | . . . . . . . . . . . . . . . . . . . . . . Allies Melted 1 | . . . . . . . . . . . . . . . . . . . . . 1 Intel | -11 -10 -10 -9 -8 -8 -8 -8 -6 -6 -6 -6 -5 -5 -4 -4 -4 -3 -3 -2 -2 -2 ------- Run | Yrd Mat Min Mat Mat Sto Rec Scr Fac Low Low Zio Pro Fac Fac Was Fac Res Tes Res Qua Frg Active Infowar (turns) 7697 | . . . . . . . . 728 448 306 307 288 1120 509 59 1090 103 667 25 466 1581 Structural 7697 | . . . . . . . . 728 448 306 307 288 1120 509 59 1090 103 667 25 466 1581 Robot Analysis Total . | . . . . . . . . . . . . . . . . . . . . . . Derelict Logs Recovered 10 | . . 2 . . . . . . 1 2 2 3 . . . . . . . . . Drone Launches . | . . . . . . . . . . . . . . . . . . . . . . Drone Recoveries . | . . . . . . . . . . . . . . . . . . . . . . Exploration | -11 -10 -10 -9 -8 -8 -8 -8 -6 -6 -6 -6 -5 -5 -4 -4 -4 -3 -3 -2 -2 -2 ------------- Run | Yrd Mat Min Mat Mat Sto Rec Scr Fac Low Low Zio Pro Fac Fac Was Fac Res Tes Res Qua Frg Turns Passed 12593 | 18 184 191 231 209 315 957 414 1206 448 306 307 288 1120 509 59 1100 103 667 220 478 3263 Spaces Moved 18663 | 33 252 378 280 279 422 461 1188 1609 621 567 672 471 1784 765 101 1582 215 966 327 849 4841 Core 145 | 33 109 . . . . . . . . . . . . . . . . . . 3 . Treads . | . . . . . . . . . . . . . . . . . . . . . . Legs . | . . . . . . . . . . . . . . . . . . . . . . Wheels . | . . . . . . . . . . . . . . . . . . . . . . Hover 10 | . . . . . . . . . . . 10 . . . . . . . . . . Flight 18508 | . 143 378 280 279 422 461 1188 1609 621 567 662 471 1784 765 101 1582 215 966 327 846 4841 Fastest Speed 32 | 50 37 37 37 37 34 34 34 32 32 32 35 35 32 32 32 32 40 40 40 40 37 Average Speed 36 | 50 42 37 37 38 35 34 34 33 32 34 35 35 32 32 32 36 40 40 40 40 41 Slowest Speed 120 | 50 50 37 37 117 37 34 34 34 35 35 80 35 35 32 32 112 40 120 40 100 120 Overloaded Moves . | . . . . . . . . . . . . . . . . . . . . . . Propulsion Burnouts . | . . . . . . . . . . . . . . . . . . . . . . Robots Hopped 89 | . 3 . . . . . . 5 1 . . . 3 4 . 7 2 . 10 1 53 Potential Cave-ins 16 | . . . . . . . . . . . . . . . . . . . . . 16 Cave-ins Triggered 1 | . . . . . . . . . . . . . . . . 1 . . . . . Exploration Rate (%) 53 | 3 42 68 30 27 68 73 88 45 76 66 73 62 45 28 72 44 12 95 11 88 59 Regions Visited 21 Branch Regions 11 Pre-discovered Areas 10 | . . 2 . . . 5 . 1 . . . 2 . . . . . . . . . Known Exits Taken 10 | . . . . 1 1 1 1 1 1 . . 1 1 . . . 1 . 1 . . Unknown Exits Taken 9 | 1 1 1 1 . . . . . . 1 1 . . . . 1 . 1 . 1 . Scrap Searched 26 | . . 1 . . . . 4 . 7 6 4 4 . . . . . . . . . Spaces Dug 159 | . . . . . . 2 . 15 4 3 . 4 18 14 . 23 7 18 4 5 42 Terrain Destroyed 1380 | . . . . . . 2 . 15 4 3 . 4 18 51 . 46 31 25 4 5 1172 Melee 122 | . . . . . . 2 . 15 4 3 . 4 18 14 . 23 7 18 4 5 5 Projectile . | . . . . . . . . . . . . . . . . . . . . . . AOE 1258 | . . . . . . . . . . . . . . 37 . 23 24 7 . . 1167 Terrain Rammed . | . . . . . . . . . . . . . . . . . . . . . . Walls Destroyed . | . . . . . . . . . . . . . . . . . . . . . . Machines Disabled . | . . . . . . . . . . . . . . . . . . . . . . Actions | -11 -10 -10 -9 -8 -8 -8 -8 -6 -6 -6 -6 -5 -5 -4 -4 -4 -3 -3 -2 -2 -2 --------- Run | Yrd Mat Min Mat Mat Sto Rec Scr Fac Low Low Zio Pro Fac Fac Was Fac Res Tes Res Qua Frg Total 23000 | 33 291 401 348 348 534 1253 1197 2036 812 646 723 572 2150 952 119 2026 225 1218 394 969 5753 Wait 2380 | . . 4 15 21 48 786 6 186 123 49 30 76 193 98 . 248 1 119 4 32 341 Move 18491 | 32 245 377 279 278 421 460 1187 1599 618 566 671 470 1778 757 100 1570 211 965 310 846 4751 Hop 64 | . 3 . . . . . . 4 1 . . . 2 4 . 4 2 . 6 1 37 Pick Up 68 | . . . . 2 5 1 1 6 1 1 . . 5 3 3 8 . 5 4 2 21 Fast Attach 72 | 1 4 1 4 1 . . 1 5 3 2 1 . 3 1 . 9 . 10 1 1 24 Attach 19 | . . . . 1 . . . 1 . . . 2 . 2 . 1 . 1 . 1 10 Detach 20 | . . . . 1 . . . 2 . . 1 1 . 2 . . . 2 . . 11 Swap 25 | . . 1 5 3 1 . . 2 . . . . 2 2 . 1 1 4 1 2 . Drop 118 | . 1 2 8 5 5 1 2 9 1 . 3 . 4 8 . 14 . 13 2 5 35 Fire 130 | . 32 . . . . . . . . . . . . 4 . . 1 1 . . 92 Melee 803 | . . 13 29 22 36 5 . 152 34 20 11 14 112 45 5 120 9 70 40 46 20 Ram . | . . . . . . . . . . . . . . . . . . . . . . Kick . | . . . . . . . . . . . . . . . . . . . . . . Crush . | . . . . . . . . . . . . . . . . . . . . . . Escape Stasis 31 | . . . . . . . . . . . . . . . . . . . . . 31 Rewire . | . . . . . . . . . . . . . . . . . . . . . . Trap . | . . . . . . . . . . . . . . . . . . . . . . Miscellaneous 779 | . 6 3 8 14 18 . . 70 31 8 6 9 51 26 11 51 . 28 26 33 380 Route ------- -11/Scrapyard -10/Materials -10/Mines -9/Materials (discovered 3 exits: *Mat / Min x2) -8/Materials -8/Storage (discovered 2 exits: [*Fac] / *Rec) -8/Recycling (discovered 2 exits: *Fac / *Scr) -8/Scraptown (discovered 2 exits: *Fac x2) -6/Factory (discovered 6 exits: Fac x4 / *Low x2) -6/Lower Caves -6/Lower Caves (discovered 2 exits: *Fac / [*Zio]) -6/Zion (discovered 2 exits: Dee / [*Pro]) -5/Proximity Caves -5/Factory (discovered 4 exits: *Fac x2 / Upp / [*Ext]) -4/Factory -4/Waste -4/Factory (discovered 6 exits: *Res x3 / Upp x2 / *Arm) -3/Research (discovered 2 exits: *Tes x2) -3/Testing -2/Research (discovered 3 exits: [*Acc] / *Qua x2) -2/Quarantine (discovered 3 exits: [*Acc] / [*Sec] / *Frg) -2/Protoforge 0bPrime History --------- Turn | Location | Event 1 | -11/Scrapyard | Upgraded with Propulsion slot (x1) 13 | -11/Scrapyard | Discovered new exit (range 12) 19 | -11/Scrapyard | Entered Materials 158 | -10/Materials | Discovered new exit (range 3) 183 | -10/Materials | Upgraded with Weapon slot (x1) 203 | -10/Materials | Entered Mines 265 | -10/Mines | Learned location of Storage (-8) 297 | -10/Mines | Learned location of Mines (-9) 370 | -10/Mines | Discovered new exit (range 5) 376 | -10/Mines | Reached level 2 394 | -10/Mines | Entered Materials 396 | -9/Materials | Reached level 3 501 | -9/Materials | Identified exit to Mines 619 | -9/Materials | Discovered new exit (range 16) 625 | -9/Materials | Entered another Materials area 627 | -8/Materials | Reached level 4 682 | -8/Materials | Identified exit to Storage 703 | -8/Materials | Build established: Hacker-Gladiator 723 | -8/Materials | Reached level 5 834 | -8/Materials | Entered Storage 836 | -8/Storage | Reached level 6 967 | -8/Storage | Reached level 7 979 | -8/Storage | Identified exit to Recycling 1017 | -8/Storage | Discovered new exit (range 16) 1097 | -8/Storage | Met a pair of Derelict thieves 1115 | -8/Storage | Used back door to open Recycling access 1149 | -8/Storage | Entered Recycling 1149 | -8/Recycling | Accompanied by 2 allies 1151 | -8/Recycling | Reached level 8 1245 | -8/Recycling | Reached level 9 1284 | -8/Recycling | Discovered new exit (range 7) 1450 | -8/Recycling | Identified exit to Scraptown 1516 | -8/Recycling | Learned Storage trap positions 1572 | -8/Recycling | Learned 2 Lower Caves zone layouts 1798 | -8/Recycling | Scanned before Scraplab entrance 1803 | -8/Recycling | Entered Scraplab 2106 | -8/Recycling | Entered Scraptown 2106 | -8/Scraptown | Accompanied by 2 allies 2107 | -8/Scraptown | Identified exit to Factory 2108 | -8/Scraptown | System corruption cleaned by C-Scrubber 2142 | -8/Scraptown | Heard Great Nut preacher, LISTEN AND RECITE! 2160 | -8/Scraptown | Visited Cyclists 2166 | -8/Scraptown | Visited CR-KLE's Repair Center 2172 | -8/Scraptown | Visited Shadow of the Wyrm 2175 | -8/Scraptown | Visited Spacefarers 2180 | -8/Scraptown | Visited The Evicted 2228 | -8/Scraptown | Upgraded with Utility slot (x2) 2285 | -8/Scraptown | Visited Comm Corps 2343 | -8/Scraptown | Visited UFD Registry 2343 | -8/Scraptown | Registered with UFD as "Novachip" 2361 | -8/Scraptown | Visited Supply Room 2367 | -8/Scraptown | Visited Research Penetration Think Tank 2377 | -8/Scraptown | Visited Observation Area 2388 | -8/Scraptown | Visited Junk Repository 2397 | -8/Scraptown | Visited Scrap Suit Storage 2402 | -8/Scraptown | Visited Infowarlord's Domain 2410 | -8/Scraptown | Visited Supply Room 2451 | -8/Scraptown | Visited Science Guys 2458 | -8/Scraptown | Visited Junk Repository 2490 | -8/Scraptown | Met Optimus 2490 | -8/Scraptown | Accepted into 0bPrime 2520 | -8/Scraptown | Entered Factory 2521 | -6/Factory | Identified exit to Lower Caves 2522 | -6/Factory | Reached level 10 2576 | -6/Factory | Reached level 11 2685 | -6/Factory | Upgraded with Utility slot (x1) 2763 | -6/Factory | Fabricated Powered Armor (x2) 2851 | -6/Factory | Central database locked down 2866 | -6/Factory | Loaded intel: 8 recycling unit locations 3015 | -6/Factory | Spotted B-75 Beast 3017 | -6/Factory | Learned location of Protoforge (-2) 3063 | -6/Factory | Reached level 12 3096 | -6/Factory | Noticed a derelict Sapper rigging charges 3264 | -6/Factory | Reached level 13 3445 | -6/Factory | Identified exit to Factory 3604 | -6/Factory | Core integrity fell below 50% 3726 | -6/Factory | Entered Lower Caves 3727 | -6/Lower Caves | Identified exit to Lower Caves 3728 | -6/Lower Caves | Reached level 14 3750 | -6/Lower Caves | Attracted the attention of an 0b10 checkpoint 3820 | -6/Lower Caves | Learned Factory trap positions 3862 | -6/Lower Caves | Build established: Hacker-Sprinter 3898 | -6/Lower Caves | Spotted B-75 Beast 4005 | -6/Lower Caves | Core integrity fell below 20% 4051 | -6/Lower Caves | Encountered a Warlord checkpoint 4174 | -6/Lower Caves | Entered another Lower Caves area 4179 | -6/Lower Caves | Discovered exit to Factory (range 12) 4180 | -6/Lower Caves | Encountered a Warlord checkpoint 4235 | -6/Lower Caves | Reached level 15 4335 | -6/Lower Caves | Learned location of 1 exit from Factory 4392 | -6/Lower Caves | Spotted B-75 Beast 4464 | -6/Lower Caves | Discovered new exit (range 8) 4466 | -6/Lower Caves | Learned Factory trap positions 4480 | -6/Lower Caves | Entered Zion 4494 | -6/Zion | Discovered new exit (range 16) 4523 | -6/Zion | System corruption cleaned by Quarantine Array 4551 | -6/Zion | Identified exit to Deep Caves 4593 | -6/Zion | Given A8's code to call for help 4703 | -6/Zion | Build established: Hacker-Gladiator 4708 | -6/Zion | Received a hallucinogenic algorithm 4753 | -6/Zion | Given the Hacking Drone Bay 4787 | -6/Zion | Entered Proximity Caves 4789 | -5/Proximity Caves | Reached level 16 4975 | -5/Proximity Caves | Learned Factory terminal intel 4998 | -5/Proximity Caves | Spotter reported a threat 5053 | -5/Proximity Caves | Learned location of Warlord (-4) 5072 | -5/Proximity Caves | Discovered exit to Factory (range 10) 5075 | -5/Proximity Caves | Entered Factory 5076 | -5/Factory | Identified exit to Upper Caves 5077 | -5/Factory | Identified exit to Factory 5077 | -5/Factory | Reached level 17 5078 | -5/Factory | Loaded intel: 87 trap records 5079 | -5/Factory | Loaded intel: 27 terminal locations 5119 | -5/Factory | Upgraded with Utility slot (x2) 5133 | -5/Factory | Reached level 18 5323 | -5/Factory | Fabricated Core Analyzer (x2) 5352 | -5/Factory | Loaded intel: 8 recycling unit locations 5465 | -5/Factory | Discovered exit to Factory (range 6) 5467 | -5/Factory | Build established: Hacker-Sprinter 5477 | -5/Factory | Reached level 19 5542 | -5/Factory | Destroyed 8 combat bots 5628 | -5/Factory | Fabricated Rocket Array? 5675 | -5/Factory | First assault squad dispatched 5731 | -5/Factory | Reached level 20 5878 | -5/Factory | Fabricated Rocket Array? 6066 | -5/Factory | Spotted B-75 Beast 6149 | -5/Factory | Discovered new exit (range 6) 6195 | -5/Factory | Entered another Factory area 6196 | -4/Factory | Loaded intel: 83 trap records 6197 | -4/Factory | Reached level 21 6361 | -4/Factory | Fabricated Ionic Axe (x1) 6381 | -4/Factory | Spotted B-86 Titan 6387 | -4/Factory | Reached level 22 6411 | -4/Factory | Destroyed 10 combat bots 6425 | -4/Factory | Spotted B-86 Titan 6568 | -4/Factory | Fabricated Ionic Axe? 6645 | -4/Factory | Reached level 23 6695 | -4/Factory | First assault squad dispatched 6704 | -4/Factory | Manually triggered Chute Trap 6704 | -4/Factory | Sucked down chute 6704 | -4/Factory | Entered Waste 6704 | -4/Waste | The area was eerily silent 6748 | -4/Waste | Discovered new exit (range 16) 6763 | -4/Waste | Entered Factory 6771 | -4/Factory | Loaded intel: 8 recycling unit locations 6948 | -4/Factory | Fabricated Nanoactuators (x2) 7110 | -4/Factory | Reached level 24 7129 | -4/Factory | Upgraded with Utility slot (x1) 7263 | -4/Factory | First assault squad dispatched 7415 | -4/Factory | Destroyed 11 combat bots 7481 | -4/Factory | Discovered new exit (range 5) 7607 | -4/Factory | Crushed by falling debris 7624 | -4/Factory | Discovered new exit (range 14) 7657 | -4/Factory | Reached level 25 7691 | -4/Factory | Discovered new exit (range 6) 7708 | -4/Factory | Build established: Hacker-Gladiator 7820 | -4/Factory | Identified exit to Upper Caves 7820 | -4/Factory | Identified exit to Armory 7845 | -4/Factory | Discovered new exit (range 8) 7863 | -4/Factory | Entered Research 7865 | -3/Research | Reached level 26 7868 | -3/Research | Identified exit to Testing 7886 | -3/Research | Loaded intel: 5 recycling unit locations 7966 | -3/Research | Entered Testing 7968 | -3/Testing | Reached level 27 8010 | -3/Testing | Protovariant out of control (PP-37W89WDUYG) 8010 | -3/Testing | Unleashed a protovariant (PP-37W89WDUYG) 8102 | -3/Testing | Found Prototype Launcher 8102 | -3/Testing | Identified Z-bomb Delivery System 8137 | -3/Testing | Found Prototype Device 8137 | -3/Testing | Identified AEGIS Remote Shield 8147 | -3/Testing | Spotted Striker 8332 | -3/Testing | Repaired Broken Nanoactuators? 8336 | -3/Testing | Superbehemoth self-activated to run performance analysis 8466 | -3/Testing | First assault squad dispatched 8508 | -3/Testing | Spotted Superbehemoth 8574 | -3/Testing | Reached level 28 8606 | -3/Testing | Discovered new exit (range 3) 8633 | -3/Testing | Entered Research 8635 | -2/Research | Reached level 29 8662 | -2/Research | Identified exit to Quarantine 8721 | -2/Research | Discovered new exit (range 16) 8726 | -2/Research | Destroyed 8 combat bots 8740 | -2/Research | Reached level 30 8853 | -2/Research | Entered Quarantine 8931 | -2/Quarantine | Spotted Alpha 7 9109 | -2/Quarantine | Discovered new exit (range 11) 9120 | -2/Quarantine | Reached level 31 9154 | -2/Quarantine | Found Alien Artifact 9168 | -2/Quarantine | Found Alien Slashing Weapon 9168 | -2/Quarantine | Identified Sigix Broadsword 9301 | -2/Quarantine | Spotted Fortress 9329 | -2/Quarantine | Discovered new exit (range 6) 9329 | -2/Quarantine | Discovered new exit (range 6) 9331 | -2/Quarantine | Entered Protoforge 9364 | -2/Protoforge | Superfortress began startup sequence 9436 | -2/Protoforge | Spotted Hotshot 9436 | -2/Protoforge | Spotted Hotshot 9442 | -2/Protoforge | Spotted AP7-3 9442 | -2/Protoforge | Spotted AP7-3 9445 | -2/Protoforge | Spotted EXE-6 9447 | -2/Protoforge | Spotted EXE-6 9449 | -2/Protoforge | Spotted Decapitator 9449 | -2/Protoforge | Spotted Decapitator 9462 | -2/Protoforge | UFD initiated attack on Protoforge 9462 | -2/Protoforge | Loaded intel: 3 recycling unit locations 9466 | -2/Protoforge | Core integrity fell below 50% 9472 | -2/Protoforge | Destroyed Decapitator 9473 | -2/Protoforge | Destroyed Decapitator 9499 | -2/Protoforge | Optimus greeted in Protoforge 9514 | -2/Protoforge | Destroyed Hotshot 9538 | -2/Protoforge | Reached level 32 9543 | -2/Protoforge | Spotted Overlord 9544 | -2/Protoforge | Destroyed Overlord 9611 | -2/Protoforge | Spotted Hotshot 9613 | -2/Protoforge | Spotted Hotshot 9634 | -2/Protoforge | Destroyed Hotshot 9741 | -2/Protoforge | Spotted B-90 Cyclops 9750 | -2/Protoforge | Destroyed B-90 Cyclops 9763 | -2/Protoforge | UFD reported confirmed Drillbomb installation 9770 | -2/Protoforge | Build established: Hacker-Mutant 9817 | -2/Protoforge | Spotted Executioner 9817 | -2/Protoforge | Spotted Executioner 9819 | -2/Protoforge | Destroyed Executioner 9825 | -2/Protoforge | Destroyed Executioner 9887 | -2/Protoforge | Spotted Executioner 9888 | -2/Protoforge | Spotted Striker 9890 | -2/Protoforge | Destroyed Executioner 9941 | -2/Protoforge | Spotted Executioner 9942 | -2/Protoforge | Spotted Striker 9953 | -2/Protoforge | Spotted Hotshot 9953 | -2/Protoforge | Spotted Hotshot 9956 | -2/Protoforge | Spotted Hotshot 9959 | -2/Protoforge | Destroyed Executioner 9963 | -2/Protoforge | Spotted Executioner 9996 | -2/Protoforge | Lost 6 allies 10033 | -2/Protoforge | Spotted Executioner 10045 | -2/Protoforge | Destroyed Hotshot 10045 | -2/Protoforge | Destroyed Hotshot 10088 | -2/Protoforge | Destroyed Hotshot 10135 | -2/Protoforge | Spotted Executioner 10138 | -2/Protoforge | Spotted Executioner 10150 | -2/Protoforge | Destroyed Executioner 10150 | -2/Protoforge | Destroyed Executioner 10169 | -2/Protoforge | Spotted Executioner 10175 | -2/Protoforge | Spotted Executioner 10183 | -2/Protoforge | Destroyed Executioner 10188 | -2/Protoforge | Destroyed Executioner 10188 | -2/Protoforge | Reached level 33 10209 | -2/Protoforge | Destroyed 12 combat bots 10231 | -2/Protoforge | UFD reported confirmed Drillbomb installation 10254 | -2/Protoforge | Spotted Executioner 10255 | -2/Protoforge | Destroyed Executioner 10387 | -2/Protoforge | Spotted Executioner 10388 | -2/Protoforge | Spotted Striker 10389 | -2/Protoforge | Destroyed Executioner 10389 | -2/Protoforge | Destroyed Striker 10415 | -2/Protoforge | Destroyed 7 combat bots 10420 | -2/Protoforge | Spotted Striker 10422 | -2/Protoforge | Spotted Striker 10424 | -2/Protoforge | System corruption reached 10% 10472 | -2/Protoforge | Spotted Executioner 10477 | -2/Protoforge | Destroyed 7 combat bots 10490 | -2/Protoforge | Destroyed Executioner 10516 | -2/Protoforge | Spotted Hotshot 10516 | -2/Protoforge | Spotted Hotshot 10517 | -2/Protoforge | Spotted Hotshot 10523 | -2/Protoforge | Destroyed Hotshot 10523 | -2/Protoforge | Destroyed Hotshot 10528 | -2/Protoforge | Destroyed Hotshot 10542 | -2/Protoforge | Spotted Executioner 10542 | -2/Protoforge | Spotted Executioner 10543 | -2/Protoforge | Spotted Striker 10549 | -2/Protoforge | Destroyed Executioner 10549 | -2/Protoforge | Destroyed Executioner 10549 | -2/Protoforge | Destroyed Striker 10553 | -2/Protoforge | UFD reported confirmed Drillbomb installation 10557 | -2/Protoforge | Spotted Hotshot 10560 | -2/Protoforge | Spotted Hotshot 10575 | -2/Protoforge | Destroyed 15 combat bots 10591 | -2/Protoforge | Spotted Executioner 10592 | -2/Protoforge | Destroyed Hotshot 10597 | -2/Protoforge | Spotted Executioner 10597 | -2/Protoforge | Spotted Executioner 10600 | -2/Protoforge | Spotted Hotshot 10602 | -2/Protoforge | Spotted Hotshot 10602 | -2/Protoforge | Destroyed Hotshot 10617 | -2/Protoforge | Lost 7 allies 10623 | -2/Protoforge | Destroyed 8 combat bots 10763 | -2/Protoforge | Found UFD Drillbomb 10796 | -2/Protoforge | Spotted Executioner 10880 | -2/Protoforge | UFD reported confirmed Drillbomb installation 10882 | -2/Protoforge | Installed UFD Drillbomb at designated target 10882 | -2/Protoforge | UFD reported confirmed Drillbomb installation 10886 | -2/Protoforge | Found UFD Drillbomb 10897 | -2/Protoforge | Discovered new exit (range 16) 10912 | -2/Protoforge | Spotted Striker 10912 | -2/Protoforge | Spotted Striker 10912 | -2/Protoforge | Spotted Striker 10912 | -2/Protoforge | Spotted Striker 10927 | -2/Protoforge | Destroyed Striker 10948 | -2/Protoforge | Destroyed 7 combat bots 10951 | -2/Protoforge | Core integrity fell below 20% 11020 | -2/Protoforge | UFD reported confirmed Drillbomb installation 11093 | -2/Protoforge | Fabricated Powered Armor? 11121 | -2/Protoforge | Fabricated Rocket Array (x1) 11131 | -2/Protoforge | Upgraded with Propulsion slot (x1) 11238 | -2/Protoforge | Spotted Hotshot 11239 | -2/Protoforge | Spotted Hotshot 11240 | -2/Protoforge | Destroyed Hotshot 11240 | -2/Protoforge | Destroyed Hotshot 11253 | -2/Protoforge | Spotted Striker 11253 | -2/Protoforge | Spotted Striker 11285 | -2/Protoforge | Spotted Executioner 11340 | -2/Protoforge | Lost 12 allies 11343 | -2/Protoforge | UFD reported confirmed Drillbomb installation 11391 | -2/Protoforge | Spotted Hotshot 11393 | -2/Protoforge | Spotted Hotshot 11393 | -2/Protoforge | Spotted Hotshot 11403 | -2/Protoforge | Destroyed Hotshot 11408 | -2/Protoforge | Destroyed Hotshot 11472 | -2/Protoforge | Installed UFD Drillbomb at designated target 11472 | -2/Protoforge | UFD reported confirmed Drillbomb installation 11493 | -2/Protoforge | Found UFD Drillbomb 11524 | -2/Protoforge | Lost 3 allies 11527 | -2/Protoforge | UFD reported confirmed Drillbomb installation 11599 | -2/Protoforge | Spotted Executioner 11617 | -2/Protoforge | Destroyed Hotshot 11639 | -2/Protoforge | Spotted Immortal 11651 | -2/Protoforge | Spotted Executioner 11651 | -2/Protoforge | Spotted Executioner 11658 | -2/Protoforge | Destroyed Executioner 11685 | -2/Protoforge | Spotted Striker 11693 | -2/Protoforge | Destroyed Striker 11695 | -2/Protoforge | Spotted Executioner 11712 | -2/Protoforge | Spotted Executioner 11713 | -2/Protoforge | Spotted Executioner 11714 | -2/Protoforge | Spotted Striker 11715 | -2/Protoforge | Spotted Striker 11767 | -2/Protoforge | Spotted Immortal 11795 | -2/Protoforge | Spotted Striker 11795 | -2/Protoforge | Spotted Executioner 11804 | -2/Protoforge | Lost 6 allies 11870 | -2/Protoforge | Spotted Striker 11892 | -2/Protoforge | Spotted Striker 11893 | -2/Protoforge | Reached level 34 11893 | -2/Protoforge | Destroyed Striker 11900 | -2/Protoforge | Spotted Striker 11900 | -2/Protoforge | Spotted Striker 11957 | -2/Protoforge | Lost 6 allies 11958 | -2/Protoforge | Destroyed Executioner 11996 | -2/Protoforge | Spotted Executioner 12004 | -2/Protoforge | Destroyed Executioner 12025 | -2/Protoforge | Destroyed 8 combat bots 12030 | -2/Protoforge | Lost 8 allies 12060 | -2/Protoforge | Spotted Executioner 12071 | -2/Protoforge | Spotted Executioner 12072 | -2/Protoforge | Spotted Hotshot 12078 | -2/Protoforge | Spotted Hotshot 12078 | -2/Protoforge | Spotted Hotshot 12079 | -2/Protoforge | Spotted Hotshot 12109 | -2/Protoforge | Destroyed Executioner 12109 | -2/Protoforge | Destroyed Hotshot 12125 | -2/Protoforge | Spotted Executioner 12125 | -2/Protoforge | Spotted Striker 12130 | -2/Protoforge | Destroyed 9 combat bots 12130 | -2/Protoforge | Lost 3 allies 12131 | -2/Protoforge | Spotted Executioner 12146 | -2/Protoforge | Spotted Striker 12146 | -2/Protoforge | Spotted Executioner 12250 | -2/Protoforge | Lost 12 allies 12320 | -2/Protoforge | Spotted Executioner 12320 | -2/Protoforge | Spotted Executioner 12334 | -2/Protoforge | Spotted Executioner 12337 | -2/Protoforge | Spotted Executioner 12340 | -2/Protoforge | Spotted Striker 12366 | -2/Protoforge | Spotted Striker 12415 | -2/Protoforge | Lost 7 allies 12448 | -2/Protoforge | Spotted Striker 12464 | -2/Protoforge | Spotted Executioner 12469 | -2/Protoforge | Found UFD Drillbomb 12494 | -2/Protoforge | Installed UFD Drillbomb at designated target 12494 | -2/Protoforge | UFD reported confirmed Drillbomb installation 12495 | -2/Protoforge | UFD began Drillbomb countdown 12595 | *** | Defending 0bPrime! Last Messages --------------- for the greater good. 0bP_NET: And look where we are now! Derelicts, soon to own an entire complex and with the tech to hold it! N-04 Retriever inserts Prototype Processor into Forge Plexus. 0bP_NET: Sadly Optimus is no longer with us to enjoy the fruits of our collective efforts. N-04 Retriever inserts Prototype Processor into Forge Plexus. 0bP_NET: But Derelicts everywhere will know and remember the exploits and sacrifices of our great leader. N-04 Retriever inserts Prototype Leg into Forge Plexus. 0bP_NET: For he was our leader, if not in title then in vision and deeds. N-04 Retriever inserts Prototype Ballistic Gun into Forge Plexus. 0bP_NET: Rest in scrap, dear Optimus. N-04 Retriever inserts Prototype Ballistic Gun into Forge Plexus. 0bP_NET: It is time for us to embark on a new adventure. N-04 Retriever inserts Prototype Piercing Weapon into Forge Plexus. N-04 Retriever inserts Prototype Processor into Forge Plexus. 0bP_NET: One in which we explore the true meaning of 0bPrime. N-04 Retriever inserts Mak. Coolant Network into Forge Plexus. N-04 Retriever inserts Prototype Leg into Forge Plexus. Map ----- +----------------------------------------------------+ | " %% % """""""""""""""""""""""""""""%%%%%%% | | % % """"""""""""""""""""""""""""" %% %=% | | "%% % %% % """""""""""""""""""""""""""""%%%%!%[ | | !! " % """""""""""""""""""""""""""""%% %%%% | | !% % %%" %"""""""""""""""""""""""""""""% % | | !"% % % """""""""""""""""""""""""""""%"% %%" | | """"""""""""""""""""""""""""" " %% | | % % """""""""""""""""""""""""""%%"% "% | | % % % %"""""""""""""""""""""""""""%"" %!% | | %%% """""""""""""""""""""""""""%% %%!! | | % %%%%%"""""""""""""""""""""""""% %% ! = | | % % %% " % """"""""""""""""""""""" %"" %/%%! | | % %% """"""""""""""""""""" %"% !=* | | % "%%%"" % % """"""""""""""""""" "!!!= | | % % """"""""""""""""" "% =! | | % % """"""""""""""" "" !% | | % % """"""""" SSs%" %" | | % %% % % %%%% % snn n SS %" "" | | %%% %% %" s n ss s "" " | | %& % % % s " " = * | | %% %% % %s% ns """ " [!*= | | % s s % % s%s"""%"""" " "%%! | | % % E % % == | | % % % %% "s" * ! | | " % % %%% "" "" " | | " @ %% " "" | | "" "" " " | | " % """" | | | | """" % """ | | "" """" "" " % """ | | """ " " """""""""" " " | | ##### #######################################"++# | | ##################""""""""""""######"""""#"" | | ???######?????????????????????????????####" | | ??????????????????????????????????????##"" | | ??????????????????????????????????????##"" | | ??????????????????????????????????????##"" | | ??????????????????????????????????????##"Y | | ??????????????????????????????????????##"" | | ??????????????????????????????????????##"" | | ??????????????????????????????????????##"" | | ??????????????????????????????????????####" % | | ??????????????????????????????????????####"" % | | ????????????????????????????????????????####"""Y"" | | ????????????????????????????????????????##"#"""""" | | ??????????????????????????????????????????"####### | | ??????????????????????????????????????????"####### | | ?????????????????????????????????????????????????? | | ?????????????????????????????????????????????????? | +----------------------------------------------------+ Best States ------------- Heat Dissipation 25 Energy Generation 65 Energy Capacity 525 Matter Stores 300 Matter Capacity 300 Sight Range 16 Terrain Scan Density 10 Additional Mass Support 9 Armor Coverage 800 Resistance: KI 20 Resistance: TH 20 Melee Speed Boost 50 Evasion (%) 63 Core Analysis 9 Offensive Hacking 59 Item Schematics ----------------- Powered Armor | -6/Factory | Hacked Power Amplifier | -6/Zion | Archive Imp. Shock Absorption System | -6/Zion | Archive Enh. Optical Array | -6/Zion | Archive Hyp. Coil Gun | -6/Zion | Archive Coil Gun | -6/Zion | Archive Imp. Thermal Shield | -6/Zion | Archive Myomer Leg | -6/Zion | Archive Adv. Focal Shield | -6/Zion | Archive Energy Well | -6/Zion | Archive Adv. System Restoration Module | -6/Zion | Archive Thermal Shield | -6/Zion | Archive Imp. Kinecellerator | -6/Zion | Archive Adv. Recoil Stabilizer | -6/Zion | Archive Adv. Signal Interpreter | -6/Zion | Archive Core Analyzer | -5/Factory | Hacked Rocket Array | -5/Factory | Hacked Ionic Axe | -4/Factory | Hacked Nanoactuators | -4/Factory | Hacked Hvy. Wave Gun | -3/Testing | Archive Electron Diverter | -2/Quarantine | Archive Exp. Myomer Leg | -2/Quarantine | Archive Exp. Transmission Jammer | -2/Quarantine | Archive Hds. Centrium Wheel | -2/Quarantine | Archive Exp. System Guard | -2/Quarantine | Archive Com. Particle Reactor | -2/Quarantine | Archive Robot Schematics ------------------ M-28 Smith | -6/Zion | Archive G-50 Soldier | -6/Zion | Archive A-15 Conveyor | -6/Zion | Archive H-88 Terminator | -6/Zion | Archive A-02 Transporter | -3/Testing | Archive R-10 Processor | -2/Quarantine | Archive Fabricated ------------ Powered Armor | x2 | -6/Factory Core Analyzer | x2 | -5/Factory Rocket Array | x1 | -5/Factory Rocket Array | x1 | -5/Factory Ionic Axe | x1 | -4/Factory Ionic Axe | x1 | -4/Factory Nanoactuators | x2 | -4/Factory Powered Armor | x2 | -2/Protoforge Rocket Array | x1 | -2/Protoforge | Authchip Repaired ---------- Nanoactuators | 47% | -3/Testing | Broken Alien Tech Used ----------------- Sigix Broadsword Achievements -------------- Rampage Challenges ------------ None RPGLIKE | -11 -10 -10 -9 -8 -8 -8 -8 -6 -6 -6 -6 -5 -5 -4 -4 -4 -3 -3 -2 -2 -2 --------- Run | Yrd Mat Min Mat Mat Sto Rec Scr Fac Low Low Zio Pro Fac Fac Was Fac Res Tes Res Qua Frg Levels Raised 33 | . . 1 1 2 2 2 . 4 1 1 . 1 4 3 . 2 1 2 2 1 3 XP Earned 53380 | 3000 600 1200 2480 2950 3071 2050 900 6174 1050 1000 500 1500 5685 4291 355 2515 2311 2031 3005 1522 5190 XP Spent 52500 | 500 500 2000 2100 2950 2700 2150 2050 2200 60 . 5550 . 7050 . . 7200 . 3750 4750 . 6990 Upgrades 76 | 1 1 5 5 8 3 2 3 2 2 . 6 . 9 . . 4 . 2 2 . 21 Propulsion Slot 2 | 1 . . . . . . . . . . . . . . . . . . . . 1 Utility Slot 6 | . . . . . . . 2 1 . . . . 2 . . 1 . . . . . Weapon Slot 1 | . 1 . . . . . . . . . . . . . . . . . . . . Core Integrity 20 | . . . . . . . . . 2 . . . . . . . . . . . 18 Energy Generation 8 | . . . . . . . . . . . 6 . . . . . . . . . 2 Energy Storage 4 | . . . . . . . . . . . . . 4 . . . . . . . . Mass Support 5 | . . . 1 1 . . . 1 . . . . . . . 2 . . . . . Inventory Capacity 10 | . . . . 1 1 . 1 . . . . . 2 . . 1 . 2 2 . . Melee Accuracy 5 | . . 5 . . . . . . . . . . . . . . . . . . . Hack Attack % 7 | . . . 4 . 2 1 . . . . . . . . . . . . . . . KI Resistance % 4 | . . . . 3 . . . . . . . . 1 . . . . . . . . TH Resistance % 4 | . . . . 3 . 1 . . . . . . . . . . . . . . . Protomatter Created 4675 | . 47 26 58 248 185 48 . 497 114 23 45 58 513 224 66 602 13 240 284 344 1040 Integrity Restored 15344 | . 141 60 174 284 265 . . 1328 693 174 135 166 989 515 229 863 . 569 537 597 7625 Core 13095 | . 141 60 174 261 227 . . 1128 693 174 135 79 774 480 138 663 . 464 464 461 6579 Parts 2249 | . . . . 23 38 . . 200 . . . 87 215 35 91 200 . 105 73 136 1046 Protomatter Decayed 11476 | . . . . 26 86 31 44 31 . . . . 89 . . 341 . 454 2 202 10170 Game ------ Seed ArcsightPulseFemtoactuators Manual? 0 Play Time 03:20:14 Cumulative 254.6 hours Start 2025.06.04 @ 17:21:50 End 2025.06.05 @ 00:06:10 Sessions 5 Manual Loads 0 Difficulty Rogue Special Mode Winter2019/RPGLIKE Game No. 250 Rogue 61 Adventurer 177 Explorer 12 Win Type 9 Total 65 Types 19/1/16/2/12/0/4/5/0/6 Lore% 54 Gallery% 52 Achievement% 70 Wizard Run 0 Options --------- Layout 0 ASCII 0 Keyboard 0 Movement Numpad Keybinds 0 Fullscreen 2 Font 12/Smallcaps Map View 83x54 Zoom Use 0% Tactical HUD 0 Map Filters NONE Filters NONE Steam 1 RUN: b5bbedff-3f09-4e10-8d78-98f1cc240310